[Event "Titled Tuesday Blitz November 29 Early 2022"]
[White "Matveeva, Olga"]
[Black "Zaloznyy, Mike"]
[WhiteFideId "24107018"]
[BlackFideId "2023075"]
[WhiteElo "2055"]
[BlackElo "2126"]
[Result "1-0"]
[Round "11"]
[TimeControl "180+1"]
[Date "2022.11.30"]
[WhiteClock "0:00:11"]
[BlackClock "0:00:17"]

1. d4 {[%clk 0:03:00]}  Nf6 {[%clk 0:02:52]} 2. c4 {[%clk 0:03:01]}  e6 {[%clk 0:02:53]} 3. g3 {[%clk 0:03:00]}  d5 {[%clk 0:02:49]} 4. Nf3 {[%clk 0:03:00]}  a6 {[%clk 0:02:48]} 5. Nbd2 {[%clk 0:02:54]}  b6 {[%clk 0:02:46]} 6. Bg2 {[%clk 0:02:53]}  Bb7 {[%clk 0:02:46]} 7. cxd5 {[%clk 0:02:52]}  exd5 {[%clk 0:02:43]} 8. O-O {[%clk 0:02:50]}  Be7 {[%clk 0:02:43]} 9. Qa4+ {[%clk 0:02:42]}  b5 {[%clk 0:02:41]} 10. Qc2 {[%clk 0:02:41]}  Nbd7 {[%clk 0:02:40]} 11. Nb3 {[%clk 0:02:19]}  Ne4 {[%clk 0:02:30]} 12. Bf4 {[%clk 0:02:16]}  c5 {[%clk 0:02:25]} 13. dxc5 {[%clk 0:02:14]}  Ndxc5 {[%clk 0:02:24]} 14. Nxc5 {[%clk 0:02:10]}  Bxc5 {[%clk 0:02:21]} 15. Ng5 {[%clk 0:01:32]}  Rc8 {[%clk 0:02:00]} 16. Nxf7 {[%clk 0:00:56]}  Kxf7 {[%clk 0:01:29]} 17. Qb3 {[%clk 0:00:56]}  Nxf2 {[%clk 0:01:05]} 18. Rxf2 {[%clk 0:00:52]}  Bxf2+ {[%clk 0:01:00]} 19. Kxf2 {[%clk 0:00:53]}  Qb6+ {[%clk 0:00:47]} 20. Be3 {[%clk 0:00:46]}  Qf6+ {[%clk 0:00:46]} 21. Kg1 {[%clk 0:00:45]}  Qe6 {[%clk 0:00:39]} 22. Rf1+ {[%clk 0:00:44]}  Ke8 {[%clk 0:00:38]} 23. Bd4 {[%clk 0:00:36]}  Rf8 {[%clk 0:00:33]} 24. Bxg7 {[%clk 0:00:31]}  Rxf1+ {[%clk 0:00:32]} 25. Bxf1 {[%clk 0:00:32]}  Rc1 {[%clk 0:00:16]} 26. Bd4 {[%clk 0:00:22]}  Qe4 {[%clk 0:00:08]} 27. Bb6 {[%clk 0:00:11]}  d4 {[%clk 0:00:06]} 28. Qg8+ {[%clk 0:00:11]}  Kd7 {[%clk 0:00:05]} 29. Qf7+ {[%clk 0:00:11]}  Kc6 {[%clk 0:00:05]} 30. Qc7+ {[%clk 0:00:07]}  Kd5 {[%clk 0:00:02]} 31. Qxc1 {[%clk 0:00:07]}  Ke6 {[%clk 0:00:03]} 32. Qh6+ {[%clk 0:00:05]}  Kf7 {[%clk 0:00:02]} 33. Qf4+ {[%clk 0:00:04]}  Qxf4 {[%clk 0:00:02]} 34. gxf4 {[%clk 0:00:05]}  Ke6 {[%clk 0:00:02]} 35. Kf2 {[%clk 0:00:05]}  Kd5 {[%clk 0:00:02]} 36. Bg2+ {[%clk 0:00:06]}  Kc4 {[%clk 0:00:03]} 37. Bxb7 {[%clk 0:00:06]}  b4 {[%clk 0:00:04]} 38. Bxa6+ {[%clk 0:00:06]}  Kd5 {[%clk 0:00:04]} 39. e3 {[%clk 0:00:06]}  h6 {[%clk 0:00:05]} 40. exd4 {[%clk 0:00:06]}  h5 {[%clk 0:00:06]} 41. Kf3 {[%clk 0:00:06]}  Kd6 {[%clk 0:00:05]} 42. f5 {[%clk 0:00:07]}  Kc6 {[%clk 0:00:06]} 43. Ke4 {[%clk 0:00:07]}  Kd7 {[%clk 0:00:07]} 44. Bc4 {[%clk 0:00:07]}  Ke8 {[%clk 0:00:08]} 45. d5 {[%clk 0:00:07]}  b3 {[%clk 0:00:09]} 46. Ke5 {[%clk 0:00:08]}  bxa2 {[%clk 0:00:10]} 47. Bxa2 {[%clk 0:00:08]}  h4 {[%clk 0:00:11]} 48. Ke6 {[%clk 0:00:08]}  h3 {[%clk 0:00:11]} 49. f6 {[%clk 0:00:09]}  Kf8 {[%clk 0:00:12]} 50. Bc5+ {[%clk 0:00:09]}  Kg8 {[%clk 0:00:13]} 51. f7+ {[%clk 0:00:09]}  Kh8 {[%clk 0:00:14]} 52. f8=Q+ {[%clk 0:00:09]}  Kh7 {[%clk 0:00:14]} 53. Qf7+ {[%clk 0:00:10]}  Kh6 {[%clk 0:00:15]} 54. Qf6+ {[%clk 0:00:10]}  Kh5 {[%clk 0:00:16]} 55. Qg7 {[%clk 0:00:10]}  Kh4 {[%clk 0:00:17]} 56. Kf5 {[%clk 0:00:10]}  Kh5 {[%clk 0:00:17]} 57. Qg5# {[%clk 0:00:11]} 1-0


[Site "https://www.chess.com"]

[Event "Titled Tuesday Blitz November 29 Early 2022"]
[White "Melian, Juan Sebastian"]
[Black "Zaksaite, Salomeja"]
[WhiteFideId "3706575"]
[BlackFideId "12801496"]
[WhiteElo "2044"]
[BlackElo "2079"]
[Result "1-0"]
[Round "11"]
[TimeControl "180+1"]
[Date "2022.11.30"]
[WhiteClock "0:00:12"]
[BlackClock "0:00:01"]

1. d4 {[%clk 0:03:00]}  Nf6 {[%clk 0:02:57]} 2. c4 {[%clk 0:03:01]}  g6 {[%clk 0:02:58]} 3. Nc3 {[%clk 0:03:00]}  d5 {[%clk 0:02:58]} 4. e4 {[%clk 0:03:01]}  dxe4 {[%clk 0:02:57]} 5. f3 {[%clk 0:02:59]}  exf3 {[%clk 0:02:56]} 6. Nxf3 {[%clk 0:03:00]}  Bg7 {[%clk 0:02:56]} 7. Bd3 {[%clk 0:02:56]}  O-O {[%clk 0:02:47]} 8. Kf1 {[%clk 0:02:56]}  c5 {[%clk 0:02:42]} 9. d5 {[%clk 0:02:56]}  e6 {[%clk 0:02:39]} 10. Bg5 {[%clk 0:02:56]}  exd5 {[%clk 0:02:31]} 11. Nxd5 {[%clk 0:02:55]}  Be6 {[%clk 0:02:30]} 12. Qb3 {[%clk 0:02:35]}  Bxd5 {[%clk 0:02:28]} 13. Bxf6 {[%clk 0:02:32]}  Qxf6 {[%clk 0:02:22]} 14. cxd5 {[%clk 0:02:32]}  Nd7 {[%clk 0:02:14]} 15. Re1 {[%clk 0:02:22]}  Rfe8 {[%clk 0:02:10]} 16. Kf2 {[%clk 0:02:18]}  c4 {[%clk 0:02:02]} 17. Bxc4 {[%clk 0:02:01]}  Nc5 {[%clk 0:02:01]} 18. Qc2 {[%clk 0:01:50]}  Qxb2 {[%clk 0:01:54]} 19. Qxb2 {[%clk 0:01:47]}  Bxb2 {[%clk 0:01:54]} 20. Rxe8+ {[%clk 0:01:40]}  Rxe8 {[%clk 0:01:52]} 21. Rb1 {[%clk 0:01:41]}  Bf6 {[%clk 0:01:19]} 22. a4 {[%clk 0:01:41]}  Ne4+ {[%clk 0:01:01]} 23. Kf1 {[%clk 0:01:29]}  Nd6 {[%clk 0:00:50]} 24. Bd3 {[%clk 0:01:27]}  Re3 {[%clk 0:00:45]} 25. Rd1 {[%clk 0:01:27]}  Kg7 {[%clk 0:00:43]} 26. Kf2 {[%clk 0:01:26]}  Re7 {[%clk 0:00:41]} 27. Rb1 {[%clk 0:01:26]}  b6 {[%clk 0:00:40]} 28. Rc1 {[%clk 0:01:24]}  Rd7 {[%clk 0:00:20]} 29. g4 {[%clk 0:01:24]}  h6 {[%clk 0:00:20]} 30. h4 {[%clk 0:01:23]}  Nb7 {[%clk 0:00:17]} 31. Bc4 {[%clk 0:00:45]}  Nc5 {[%clk 0:00:15]} 32. g5 {[%clk 0:00:36]}  hxg5 {[%clk 0:00:14]} 33. hxg5 {[%clk 0:00:37]}  Ne4+ {[%clk 0:00:13]} 34. Kg2 {[%clk 0:00:25]}  Nxg5 {[%clk 0:00:10]} 35. Nh2 {[%clk 0:00:25]}  Ne4 {[%clk 0:00:09]} 36. Ng4 {[%clk 0:00:21]}  Nd6 {[%clk 0:00:08]} 37. Bd3 {[%clk 0:00:21]}  Bg5 {[%clk 0:00:08]} 38. Rf1 {[%clk 0:00:21]}  f5 {[%clk 0:00:08]} 39. Ne5 {[%clk 0:00:21]}  Rc7 {[%clk 0:00:07]} 40. Nf3 {[%clk 0:00:20]}  Bf6 {[%clk 0:00:07]} 41. Re1 {[%clk 0:00:21]}  Rc3 {[%clk 0:00:07]} 42. Bf1 {[%clk 0:00:21]}  Ne4 {[%clk 0:00:06]} 43. Rd1 {[%clk 0:00:20]}  Nd6 {[%clk 0:00:04]} 44. Bb5 {[%clk 0:00:18]}  Nxb5 {[%clk 0:00:03]} 45. axb5 {[%clk 0:00:19]}  Kf8 {[%clk 0:00:03]} 46. d6 {[%clk 0:00:19]}  Ke8 {[%clk 0:00:03]} 47. Nd2 {[%clk 0:00:18]}  Kd7 {[%clk 0:00:03]} 48. Nf1 {[%clk 0:00:15]}  Rc5 {[%clk 0:00:03]} 49. Ne3 {[%clk 0:00:14]}  Rxb5 {[%clk 0:00:03]} 50. Nd5 {[%clk 0:00:14]}  Rc5 {[%clk 0:00:03]} 51. Nxf6+ {[%clk 0:00:14]}  Kd8 {[%clk 0:00:03]} 52. Kf3 {[%clk 0:00:13]}  Rc6 {[%clk 0:00:03]} 53. Kf4 {[%clk 0:00:13]}  a5 {[%clk 0:00:02]} 54. Ke5 {[%clk 0:00:13]}  a4 {[%clk 0:00:02]} 55. Rh1 {[%clk 0:00:12]}  Rc5+ {[%clk 0:00:01]} 56. Ke6 {[%clk 0:00:12]}  Kc8 {[%clk 0:00:01]} 57. Rh8+ {[%clk 0:00:11]}  Kb7 {[%clk 0:00:01]} 58. d7 {[%clk 0:00:12]} 1-0


[Site "https://www.chess.com"]

[Event "Titled Tuesday Blitz November 29 Early 2022"]
[White "Mikhalsky, Vladimir"]
[Black "Sadykov, Ramil"]
[WhiteFideId "14144352"]
[BlackFideId "24113590"]
[WhiteElo "2271"]
[BlackElo "2245"]
[Result "1-0"]
[Round "11"]
[TimeControl "180+1"]
[Date "2022.11.30"]
[WhiteClock "0:00:12"]
[BlackClock "0:00:01"]

1. d4 {[%clk 0:03:00]}  Nf6 {[%clk 0:02:57]} 2. c4 {[%clk 0:03:00]}  g6 {[%clk 0:02:57]} 3. f3 {[%clk 0:02:57]}  d5 {[%clk 0:02:55]} 4. cxd5 {[%clk 0:02:57]}  Nxd5 {[%clk 0:02:56]} 5. e4 {[%clk 0:02:57]}  Nb6 {[%clk 0:02:57]} 6. Nc3 {[%clk 0:02:57]}  Bg7 {[%clk 0:02:57]} 7. Be3 {[%clk 0:02:56]}  O-O {[%clk 0:02:58]} 8. Qd2 {[%clk 0:02:56]}  Nc6 {[%clk 0:02:57]} 9. O-O-O {[%clk 0:02:55]}  f5 {[%clk 0:02:54]} 10. e5 {[%clk 0:02:51]}  f4 {[%clk 0:02:55]} 11. Bf2 {[%clk 0:02:49]}  Nb4 {[%clk 0:02:50]} 12. a3 {[%clk 0:02:43]}  N4d5 {[%clk 0:02:40]} 13. h4 {[%clk 0:02:39]}  Bf5 {[%clk 0:02:35]} 14. h5 {[%clk 0:02:36]}  Rc8 {[%clk 0:02:05]} 15. Nh3 {[%clk 0:02:33]}  Qd7 {[%clk 0:01:56]} 16. Nxf4 {[%clk 0:02:19]}  Nxf4 {[%clk 0:01:31]} 17. Qxf4 {[%clk 0:02:18]}  Bc2 {[%clk 0:01:29]} 18. Qh4 {[%clk 0:01:59]}  Bxd1 {[%clk 0:01:30]} 19. hxg6 {[%clk 0:01:54]}  h6 {[%clk 0:01:28]} 20. Nxd1 {[%clk 0:01:48]}  c5 {[%clk 0:01:21]} 21. dxc5 {[%clk 0:01:48]}  Rfd8 {[%clk 0:01:18]} 22. Bc4+ {[%clk 0:01:44]}  Nxc4 {[%clk 0:01:18]} 23. Qxc4+ {[%clk 0:01:43]}  e6 {[%clk 0:01:17]} 24. f4 {[%clk 0:01:30]}  b6 {[%clk 0:01:06]} 25. b4 {[%clk 0:01:21]}  bxc5 {[%clk 0:01:05]} 26. Bxc5 {[%clk 0:01:12]}  a5 {[%clk 0:01:05]} 27. f5 {[%clk 0:01:02]}  Bxe5 {[%clk 0:00:38]} 28. fxe6 {[%clk 0:00:44]}  Qd5 {[%clk 0:00:38]} 29. Qxd5 {[%clk 0:00:41]}  Rxd5 {[%clk 0:00:38]} 30. Kb1 {[%clk 0:00:24]}  axb4 {[%clk 0:00:33]} 31. axb4 {[%clk 0:00:25]}  Rd2 {[%clk 0:00:31]} 32. Ne3 {[%clk 0:00:21]}  Rb2+ {[%clk 0:00:21]} 33. Kc1 {[%clk 0:00:21]}  Rxb4 {[%clk 0:00:20]} 34. e7 {[%clk 0:00:17]}  Rxc5+ {[%clk 0:00:18]} 35. Kd2 {[%clk 0:00:17]}  Rb8 {[%clk 0:00:13]} 36. Ke2 {[%clk 0:00:17]}  Re8 {[%clk 0:00:12]} 37. Nf5 {[%clk 0:00:16]}  Bg7 {[%clk 0:00:11]} 38. g4 {[%clk 0:00:15]}  Rc6 {[%clk 0:00:07]} 39. Kf3 {[%clk 0:00:14]}  Rxg6 {[%clk 0:00:07]} 40. Rd1 {[%clk 0:00:13]}  Re6 {[%clk 0:00:07]} 41. Rd8 {[%clk 0:00:13]}  Rxe7 {[%clk 0:00:01]} 42. Nxe7+ {[%clk 0:00:12]} 1-0


[Site "https://www.chess.com"]

[Event "Titled Tuesday Blitz November 29 Early 2022"]
[White "Mogirzan, Matei-Valeriu"]
[Black "Prohorov, Olexandr"]
[WhiteFideId "1257455"]
[BlackFideId "14105578"]
[WhiteElo "1733"]
[BlackElo "1993"]
[Result "1-0"]
[Round "11"]
[TimeControl "180+1"]
[Date "2022.11.30"]
[WhiteClock "0:01:47"]
[BlackClock "0:02:32"]

1. e4 {[%clk 0:03:00]}  c5 {[%clk 0:02:54]} 2. Nf3 {[%clk 0:02:51]}  e6 {[%clk 0:02:52]} 3. d4 {[%clk 0:02:44]}  cxd4 {[%clk 0:02:53]} 4. Nxd4 {[%clk 0:02:45]}  Qb6 {[%clk 0:02:48]} 5. Nb3 {[%clk 0:02:40]}  Nf6 {[%clk 0:02:39]} 6. Be3 {[%clk 0:02:35]}  Qc7 {[%clk 0:02:38]} 7. Bd3 {[%clk 0:02:19]}  Bb4+ {[%clk 0:02:39]} 8. c3 {[%clk 0:02:13]}  d5 {[%clk 0:02:40]} 9. cxb4 {[%clk 0:02:09]}  dxe4 {[%clk 0:02:39]} 10. Bb5+ {[%clk 0:02:06]}  Bd7 {[%clk 0:02:39]} 11. Bxd7+ {[%clk 0:02:05]}  Nbxd7 {[%clk 0:02:39]} 12. Nc3 {[%clk 0:02:03]}  O-O {[%clk 0:02:38]} 13. O-O {[%clk 0:02:01]}  Ne5 {[%clk 0:02:33]} 14. Nb5 {[%clk 0:01:51]}  Qe7 {[%clk 0:02:32]} 15. Bc5 {[%clk 0:01:47]} 1-0


[Site "https://www.chess.com"]

[Event "Titled Tuesday Blitz November 29 Early 2022"]
[White "Mohammed, Dilshad"]
[Black "Estrada Nieto, Julian"]
[WhiteFideId "5050421"]
[BlackFideId "5101018"]
[WhiteElo "2102"]
[BlackElo "2221"]
[Result "0-1"]
[Round "11"]
[TimeControl "180+1"]
[Date "2022.11.30"]
[WhiteClock "0:01:46"]
[BlackClock "0:00:49"]

1. Nf3 {[%clk 0:02:59]}  d5 {[%clk 0:02:59]} 2. d4 {[%clk 0:02:59]}  Nf6 {[%clk 0:02:59]} 3. e3 {[%clk 0:02:59]}  c5 {[%clk 0:02:57]} 4. Bd3 {[%clk 0:02:59]}  Nc6 {[%clk 0:02:56]} 5. c3 {[%clk 0:03:00]}  Bg4 {[%clk 0:02:54]} 6. h3 {[%clk 0:03:00]}  Bxf3 {[%clk 0:02:54]} 7. Qxf3 {[%clk 0:03:01]}  e6 {[%clk 0:02:54]} 8. Qd1 {[%clk 0:03:01]}  Bd6 {[%clk 0:02:52]} 9. Nd2 {[%clk 0:03:01]}  O-O {[%clk 0:02:51]} 10. Nf3 {[%clk 0:03:01]}  c4 {[%clk 0:02:47]} 11. Bc2 {[%clk 0:03:01]}  b5 {[%clk 0:02:47]} 12. a3 {[%clk 0:03:01]}  a5 {[%clk 0:02:47]} 13. O-O {[%clk 0:03:00]}  Qc7 {[%clk 0:02:39]} 14. Qe2 {[%clk 0:03:00]}  b4 {[%clk 0:02:37]} 15. e4 {[%clk 0:02:57]}  b3 {[%clk 0:02:20]} 16. Bb1 {[%clk 0:02:56]}  Bf4 {[%clk 0:02:18]} 17. e5 {[%clk 0:02:55]}  Bxc1 {[%clk 0:02:18]} 18. exf6 {[%clk 0:02:53]}  Bh6 {[%clk 0:02:14]} 19. fxg7 {[%clk 0:02:53]}  Kxg7 {[%clk 0:02:02]} 20. Ne5 {[%clk 0:02:49]}  Nxe5 {[%clk 0:01:56]} 21. dxe5 {[%clk 0:02:50]}  f5 {[%clk 0:01:50]} 22. exf6+ {[%clk 0:02:45]}  Rxf6 {[%clk 0:01:50]} 23. Qg4+ {[%clk 0:02:33]}  Kh8 {[%clk 0:01:47]} 24. Re1 {[%clk 0:02:26]}  Rg8 {[%clk 0:01:38]} 25. Qh4 {[%clk 0:02:24]}  Qg7 {[%clk 0:01:37]} 26. g3 {[%clk 0:02:20]}  Bg5 {[%clk 0:01:19]} 27. Qh5 {[%clk 0:02:15]}  Bd2 {[%clk 0:01:08]} 28. Re2 {[%clk 0:02:06]}  Rxf2 {[%clk 0:01:00]} 29. Rxf2 {[%clk 0:01:57]}  Qxg3+ {[%clk 0:00:59]} 30. Kf1 {[%clk 0:01:58]}  Qg1+ {[%clk 0:00:57]} 31. Ke2 {[%clk 0:01:58]}  Qe1+ {[%clk 0:00:55]} 32. Kf3 {[%clk 0:01:58]}  Rf8+ {[%clk 0:00:51]} 33. Kg4 {[%clk 0:01:53]}  Qg1+ {[%clk 0:00:49]} 34. Kh4 {[%clk 0:01:46]}  Qxf2+ {[%clk 0:00:49]} 0-1


[Site "https://www.chess.com"]

[Event "Titled Tuesday Blitz November 29 Early 2022"]
[White "Mohammed, Zozek Salah Mohammed"]
[Black "Sanchez, Robert"]
[WhiteFideId "4803361"]
[BlackFideId "2034360"]
[WhiteElo "2199"]
[BlackElo "2334"]
[Result "1-0"]
[Round "11"]
[TimeControl "180+1"]
[Date "2022.11.30"]
[WhiteClock "0:00:08"]
[BlackClock "0:00:01"]

1. d4 {[%clk 0:02:51]}  Nf6 {[%clk 0:02:59]} 2. c4 {[%clk 0:02:50]}  e6 {[%clk 0:03:00]} 3. Nf3 {[%clk 0:02:49]}  Bb4+ {[%clk 0:03:00]} 4. Bd2 {[%clk 0:02:50]}  a5 {[%clk 0:02:59]} 5. g3 {[%clk 0:02:49]}  O-O {[%clk 0:02:59]} 6. Bg2 {[%clk 0:02:50]}  d6 {[%clk 0:02:57]} 7. O-O {[%clk 0:02:50]}  Bxd2 {[%clk 0:02:56]} 8. Nbxd2 {[%clk 0:02:49]}  Nbd7 {[%clk 0:02:56]} 9. e4 {[%clk 0:02:48]}  e5 {[%clk 0:02:57]} 10. d5 {[%clk 0:02:41]}  Nc5 {[%clk 0:02:57]} 11. Ne1 {[%clk 0:02:39]}  Ng4 {[%clk 0:02:45]} 12. h3 {[%clk 0:02:20]}  Nh6 {[%clk 0:02:44]} 13. Qc2 {[%clk 0:02:02]}  f5 {[%clk 0:02:43]} 14. Nd3 {[%clk 0:02:03]}  Nxd3 {[%clk 0:02:40]} 15. Qxd3 {[%clk 0:02:02]}  f4 {[%clk 0:02:41]} 16. g4 {[%clk 0:01:59]}  Nf7 {[%clk 0:02:36]} 17. f3 {[%clk 0:01:59]}  Bd7 {[%clk 0:02:32]} 18. Qe2 {[%clk 0:01:55]}  Qe8 {[%clk 0:02:21]} 19. Qf2 {[%clk 0:01:54]}  b6 {[%clk 0:02:19]} 20. h4 {[%clk 0:01:54]}  g5 {[%clk 0:02:13]} 21. h5 {[%clk 0:01:53]}  Qc8 {[%clk 0:02:08]} 22. Qe2 {[%clk 0:01:49]}  c6 {[%clk 0:02:01]} 23. Rac1 {[%clk 0:01:46]}  Qa6 {[%clk 0:01:52]} 24. Kh2 {[%clk 0:01:45]}  Rac8 {[%clk 0:01:51]} 25. Qf2 {[%clk 0:01:38]}  c5 {[%clk 0:01:46]} 26. Nb1 {[%clk 0:01:30]}  b5 {[%clk 0:01:37]} 27. Na3 {[%clk 0:01:29]}  b4 {[%clk 0:01:33]} 28. Nb1 {[%clk 0:01:24]}  a4 {[%clk 0:01:33]} 29. Nd2 {[%clk 0:01:22]}  h6 {[%clk 0:01:32]} 30. Ra1 {[%clk 0:01:16]}  Qb6 {[%clk 0:01:29]} 31. b3 {[%clk 0:01:16]}  Ra8 {[%clk 0:01:28]} 32. Rfb1 {[%clk 0:01:04]}  Qc7 {[%clk 0:01:21]} 33. Qe1 {[%clk 0:01:02]}  Ra5 {[%clk 0:01:20]} 34. Qd1 {[%clk 0:01:02]}  Rfa8 {[%clk 0:01:20]} 35. Qc1 {[%clk 0:01:01]}  R8a6 {[%clk 0:01:17]} 36. Qb2 {[%clk 0:01:00]}  Qa7 {[%clk 0:01:16]} 37. bxa4 {[%clk 0:01:00]}  Rxa4 {[%clk 0:01:16]} 38. a3 {[%clk 0:00:56]}  Rxa3 {[%clk 0:01:14]} 39. Rxa3 {[%clk 0:00:55]}  Rxa3 {[%clk 0:01:14]} 40. Nb3 {[%clk 0:00:55]}  Qa4 {[%clk 0:01:04]} 41. Kh3 {[%clk 0:00:50]}  Nd8 {[%clk 0:00:55]} 42. Nxc5 {[%clk 0:00:49]}  dxc5 {[%clk 0:00:50]} 43. Qxe5 {[%clk 0:00:50]}  Nf7 {[%clk 0:00:41]} 44. Qe7 {[%clk 0:00:42]}  Qa7 {[%clk 0:00:37]} 45. Qf6 {[%clk 0:00:36]}  Qc7 {[%clk 0:00:31]} 46. Qg6+ {[%clk 0:00:27]}  Kf8 {[%clk 0:00:29]} 47. Re1 {[%clk 0:00:23]}  Qc8 {[%clk 0:00:20]} 48. e5 {[%clk 0:00:19]}  Bxg4+ {[%clk 0:00:20]} 49. Kh2 {[%clk 0:00:20]}  Qf5 {[%clk 0:00:13]} 50. Qb6 {[%clk 0:00:15]}  Nxe5 {[%clk 0:00:07]} 51. Qxc5+ {[%clk 0:00:14]}  Kf7 {[%clk 0:00:04]} 52. Qxb4 {[%clk 0:00:14]}  Ra2 {[%clk 0:00:04]} 53. Qb7+ {[%clk 0:00:13]}  Nd7 {[%clk 0:00:04]} 54. Kg1 {[%clk 0:00:10]}  Bh3 {[%clk 0:00:03]} 55. d6 {[%clk 0:00:08]}  Rxg2+ {[%clk 0:00:02]} 56. Kh1 {[%clk 0:00:08]}  Rd2 {[%clk 0:00:01]} 57. Re7+ {[%clk 0:00:08]} 1-0


[Site "https://www.chess.com"]

[Event "Titled Tuesday Blitz November 29 Early 2022"]
[White "Nguyen, Thai Dai Van"]
[Black "Aloma Vidal, Robert"]
[WhiteFideId "358878"]
[BlackFideId "2260409"]
[WhiteElo "2534"]
[BlackElo "2435"]
[Result "0-1"]
[Round "11"]
[TimeControl "180+1"]
[Date "2022.11.29"]
[WhiteClock "0:00:27"]
[BlackClock "0:00:09"]

1. e4 {[%clk 0:03:00]}  e5 {[%clk 0:03:00]} 2. Nf3 {[%clk 0:03:00]}  Nf6 {[%clk 0:03:00]} 3. Nxe5 {[%clk 0:02:58]}  d6 {[%clk 0:03:01]} 4. Nf3 {[%clk 0:02:58]}  Nxe4 {[%clk 0:03:01]} 5. Nc3 {[%clk 0:02:59]}  Nf6 {[%clk 0:03:01]} 6. d4 {[%clk 0:02:59]}  g6 {[%clk 0:03:02]} 7. Bg5 {[%clk 0:02:54]}  Bg7 {[%clk 0:03:02]} 8. Qd2 {[%clk 0:02:54]}  h6 {[%clk 0:03:01]} 9. Be3 {[%clk 0:02:53]}  Nc6 {[%clk 0:02:51]} 10. O-O-O {[%clk 0:02:53]}  a6 {[%clk 0:02:48]} 11. h3 {[%clk 0:02:45]}  b5 {[%clk 0:02:44]} 12. g4 {[%clk 0:02:45]}  Bb7 {[%clk 0:02:41]} 13. Bg2 {[%clk 0:02:45]}  Ne7 {[%clk 0:02:20]} 14. Rhe1 {[%clk 0:02:43]}  Qd7 {[%clk 0:02:09]} 15. Ne5 {[%clk 0:02:43]}  Bxg2 {[%clk 0:01:54]} 16. Nxd7 {[%clk 0:02:42]}  Kxd7 {[%clk 0:01:54]} 17. Kb1 {[%clk 0:02:34]}  Bf3 {[%clk 0:01:50]} 18. Rc1 {[%clk 0:02:34]}  h5 {[%clk 0:01:45]} 19. g5 {[%clk 0:02:34]}  Nfd5 {[%clk 0:01:42]} 20. Nxd5 {[%clk 0:02:33]}  Nxd5 {[%clk 0:01:42]} 21. h4 {[%clk 0:02:33]}  Rhe8 {[%clk 0:01:38]} 22. Qd3 {[%clk 0:02:31]}  Rab8 {[%clk 0:01:29]} 23. Bd2 {[%clk 0:02:29]}  Bg4 {[%clk 0:01:27]} 24. Rxe8 {[%clk 0:02:27]}  Rxe8 {[%clk 0:01:28]} 25. Re1 {[%clk 0:02:27]}  Rxe1+ {[%clk 0:01:26]} 26. Bxe1 {[%clk 0:02:28]}  Bf5 {[%clk 0:01:26]} 27. Qd1 {[%clk 0:02:23]}  Nf4 {[%clk 0:01:22]} 28. f3 {[%clk 0:02:24]}  Nd5 {[%clk 0:01:12]} 29. a3 {[%clk 0:02:20]}  Ne3 {[%clk 0:01:11]} 30. Qd2 {[%clk 0:02:13]}  Nxc2 {[%clk 0:01:07]} 31. Ka2 {[%clk 0:02:08]}  Nxd4 {[%clk 0:01:04]} 32. Bf2 {[%clk 0:02:09]}  Be6+ {[%clk 0:01:01]} 33. Kb1 {[%clk 0:02:09]}  Bf5+ {[%clk 0:00:59]} 34. Ka2 {[%clk 0:02:08]}  Be6+ {[%clk 0:00:58]} 35. Kb1 {[%clk 0:02:09]}  Nxf3 {[%clk 0:00:58]} 36. Qf4 {[%clk 0:02:09]}  Ne5 {[%clk 0:00:50]} 37. Bg3 {[%clk 0:02:08]}  Bf5+ {[%clk 0:00:48]} 38. Ka2 {[%clk 0:02:08]}  Nd3 {[%clk 0:00:43]} 39. Qd2 {[%clk 0:02:08]}  Nxb2 {[%clk 0:00:42]} 40. Qa5 {[%clk 0:02:09]}  Be6+ {[%clk 0:00:33]} 41. Kb1 {[%clk 0:02:09]}  Bf5+ {[%clk 0:00:26]} 42. Ka2 {[%clk 0:02:09]}  Be6+ {[%clk 0:00:25]} 43. Kb1 {[%clk 0:02:10]}  Nd3 {[%clk 0:00:22]} 44. Qxa6 {[%clk 0:02:09]}  Bc4 {[%clk 0:00:20]} 45. Qa7 {[%clk 0:02:03]}  Nc5 {[%clk 0:00:20]} 46. Bf2 {[%clk 0:01:57]}  Na4 {[%clk 0:00:20]} 47. Bd4 {[%clk 0:01:56]}  Be5 {[%clk 0:00:19]} 48. Bxe5 {[%clk 0:01:57]}  dxe5 {[%clk 0:00:19]} 49. Qe3 {[%clk 0:01:57]}  Ke6 {[%clk 0:00:18]} 50. Kc2 {[%clk 0:01:56]}  c5 {[%clk 0:00:17]} 51. Qf3 {[%clk 0:01:56]}  Kd6 {[%clk 0:00:15]} 52. Qf6+ {[%clk 0:01:55]}  Be6 {[%clk 0:00:15]} 53. Qd8+ {[%clk 0:01:55]}  Kc6 {[%clk 0:00:15]} 54. Qe8+ {[%clk 0:01:55]}  Kb6 {[%clk 0:00:15]} 55. Qb8+ {[%clk 0:01:53]}  Kc6 {[%clk 0:00:15]} 56. Qxe5 {[%clk 0:01:54]}  Nb6 {[%clk 0:00:16]} 57. Qb8 {[%clk 0:01:51]}  Nc4 {[%clk 0:00:15]} 58. Kd3 {[%clk 0:01:47]}  Bf5+ {[%clk 0:00:13]} 59. Ke2 {[%clk 0:01:47]}  Be6 {[%clk 0:00:13]} 60. Qa8+ {[%clk 0:01:44]}  Kb6 {[%clk 0:00:13]} 61. Kf3 {[%clk 0:01:44]}  Ne5+ {[%clk 0:00:08]} 62. Kf4 {[%clk 0:01:43]}  Nd3+ {[%clk 0:00:08]} 63. Ke3 {[%clk 0:01:43]}  Nb2 {[%clk 0:00:08]} 64. Qb8+ {[%clk 0:01:40]}  Kc6 {[%clk 0:00:09]} 65. Qe8+ {[%clk 0:01:39]}  Kb6 {[%clk 0:00:09]} 66. Qb8+ {[%clk 0:01:33]}  Kc6 {[%clk 0:00:09]} 67. Qa8+ {[%clk 0:01:34]}  Kb6 {[%clk 0:00:09]} 68. Ke4 {[%clk 0:01:35]}  Nc4 {[%clk 0:00:07]} 69. Qb8+ {[%clk 0:01:35]}  Kc6 {[%clk 0:00:07]} 70. Qa8+ {[%clk 0:01:36]}  Kb6 {[%clk 0:00:08]} 71. Kf4 {[%clk 0:01:33]}  Kc7 {[%clk 0:00:07]} 72. Qa6 {[%clk 0:01:30]}  Bd7 {[%clk 0:00:06]} 73. Qa7+ {[%clk 0:01:30]}  Kc6 {[%clk 0:00:06]} 74. a4 {[%clk 0:01:24]}  Nd6 {[%clk 0:00:02]} 75. Qa6+ {[%clk 0:01:22]}  Kd5 {[%clk 0:00:02]} 76. a5 {[%clk 0:01:19]}  b4 {[%clk 0:00:02]} 77. Qa8+ {[%clk 0:01:18]}  Bc6 {[%clk 0:00:03]} 78. Qh8 {[%clk 0:01:19]}  b3 {[%clk 0:00:03]} 79. a6 {[%clk 0:01:19]}  Nc4 {[%clk 0:00:01]} 80. a7 {[%clk 0:01:19]}  b2 {[%clk 0:00:01]} 81. Qd8+ {[%clk 0:01:08]}  Ke6 {[%clk 0:00:02]} 82. Qc8+ {[%clk 0:01:04]}  Kd5 {[%clk 0:00:02]} 83. Qxc6+ {[%clk 0:00:46]}  Kxc6 {[%clk 0:00:01]} 84. a8=Q+ {[%clk 0:00:47]}  Kd6 {[%clk 0:00:01]} 85. Qf8+ {[%clk 0:00:41]}  Kc6 {[%clk 0:00:02]} 86. Qa8+ {[%clk 0:00:40]}  Kb5 {[%clk 0:00:02]} 87. Qa2 {[%clk 0:00:39]}  Kb4 {[%clk 0:00:02]} 88. Qb1 {[%clk 0:00:36]}  Kc3 {[%clk 0:00:03]} 89. Qe1+ {[%clk 0:00:31]}  Nd2 {[%clk 0:00:04]} 90. Qe3+ {[%clk 0:00:26]}  Kc2 {[%clk 0:00:04]} 91. Qxc5+ {[%clk 0:00:26]}  Kd1 {[%clk 0:00:05]} 92. Qg1+ {[%clk 0:00:25]}  Kc2 {[%clk 0:00:05]} 93. Qc5+ {[%clk 0:00:26]}  Kd1 {[%clk 0:00:06]} 94. Qg1+ {[%clk 0:00:19]}  Kc2 {[%clk 0:00:06]} 95. Ke5 {[%clk 0:00:20]}  b1=Q {[%clk 0:00:06]} 96. Qxb1+ {[%clk 0:00:21]}  Kxb1 {[%clk 0:00:06]} 97. Kf6 {[%clk 0:00:21]}  Nf3 {[%clk 0:00:06]} 98. Kxf7 {[%clk 0:00:22]}  Nxh4 {[%clk 0:00:07]} 99. Kf6 {[%clk 0:00:23]}  Kc2 {[%clk 0:00:07]} 100. Ke5 {[%clk 0:00:24]}  Kd3 {[%clk 0:00:08]} 101. Kf4 {[%clk 0:00:25]}  Kd4 {[%clk 0:00:08]} 102. Kg3 {[%clk 0:00:26]}  Nf5+ {[%clk 0:00:09]} 103. Kh3 {[%clk 0:00:27]}  Ke4 {[%clk 0:00:09]} 0-1


[Site "https://www.chess.com"]